fUSD/lending_fUSD_20260519
["ID","MTS","AMOUNT","RATE_DAILY","PERIOD"]
[422640309,1779198951000,722.66,0.00030136,120]
[422640310,1779198952000,186.41963685,0.00030136,120]
[422640311,1779198953000,500.0,0.00030136,120]
[422640312,1779198956000,176.96477742,0.00030136,120]
[422640314,1779198958000,321.59573126,0.00030136,120]
[422640313,1779198958000,224.40930877,0.00030136,120]
[422640315,1779198959000,3549.25,0.00030136,120]
[422640317,1779198960000,345.42204492,0.00030136,120]
[422640316,1779198960000,500.0,0.00030136,120]
[422640318,1779198962000,500.0,0.00030136,120]
[422640319,1779198965000,201.42288157,0.00030136,120]
[422640320,1779198967000,500.0,0.00030136,120]
[422640321,1779198968000,500.0,0.00030136,120]
[422640322,1779198968000,174.98275312,0.00030136,120]
[422640323,1779198969000,288.56877735,0.00030136,120]
[422640324,1779198970000,168.09466077,0.00030136,120]
[422640325,1779198970000,242.14515343,0.00030136,120]
[422640326,1779198971000,603.45953421,0.00030136,120]
[422640328,1779198974000,270.74375374,0.00030136,120]
[422640327,1779198974000,164.94712301,0.00030136,120]
[422640330,1779198975000,291.77843103,0.00030136,120]
[422640329,1779198975000,481.03139384,0.00030136,120]
[422640332,1779198976000,177.95590607,0.00030136,120]
[422640331,1779198976000,228.19157612,0.00030136,120]
[422640333,1779198977000,270.95558362,0.00030136,120]
[422640334,1779198977000,311.1832724,0.00030136,120]
[422640335,1779198978000,518.97329366,0.00030136,120]
[422640336,1779198980000,322.25963614,0.00030136,120]
[422640337,1779198981000,500.0,0.00030136,120]
[422640338,1779198982000,328.00487928,0.00030136,120]
[422640341,1779198983000,500.0,0.00030136,120]
[422640340,1779198983000,224.78628004,0.00030136,120]
[422640339,1779198983000,1254.68,0.00030136,120]
[422640342,1779198984000,154.59610946,0.00030136,120]
[422640343,1779198985000,500.0,0.00030136,120]
[422640344,1779198986000,2508.66,0.00030136,120]
[422640345,1779198987000,244.93329095,0.00030136,120]
[422640346,1779198987000,335.59596744,0.00030136,120]
[422640347,1779198988000,208.24515582,0.00030136,120]
[422640348,1779198988000,162.82410857,0.00030136,120]
[422640349,1779198989000,469.07136943,0.00030136,120]
[422640351,1779198991000,233.42015601,0.00030136,120]
[422640350,1779198991000,210.76704367,0.00030136,120]
[422640353,1779198992000,289.38421389,0.00030136,120]
[422640352,1779198992000,2131.72,0.00030136,120]
[422640354,1779198993000,167.21509604,0.00030136,120]
[422640356,1779198995000,500.0,0.00030136,120]
[422640355,1779198995000,496.74202932,0.00030136,120]
[422640357,1779198996000,201.27601485,0.00030136,120]
[422640358,1779198996000,500.0,0.00030136,120]
[422640359,1779198997000,8962.53,0.00030136,120]
[422640360,1779199000000,201.00794298,0.00030136,120]
[422640361,1779199002000,150.78439305,0.00030136,120]
[422640363,1779199003000,2787.27,0.00030136,120]
[422640362,1779199003000,500.0,0.00030136,120]
[422640364,1779199004000,567.48631176,0.00030136,120]
[422640365,1779199005000,180.91394717,0.00030136,120]
[422640366,1779199006000,500.0,0.00030136,120]
[422640368,1779199006000,320.13175584,0.00030136,120]
[422640367,1779199006000,574.49094325,0.00030136,120]
[422640369,1779199008000,257.31110785,0.00030136,120]
[422640370,1779199010000,470.06852937,0.00030136,120]
[422640371,1779199010000,189.51034784,0.00030136,120]
[422640372,1779199011000,433.42834942,0.00030136,120]
[422640374,1779199013000,420.3166664,0.00030136,120]
[422640373,1779199013000,589.4282233,0.00030136,120]
[422640375,1779199014000,315.82112957,0.00030136,120]
[422640376,1779199016000,261.08596426,0.00030136,120]
[422640377,1779199017000,627.17836964,0.00030136,120]
[422640378,1779199017000,191.569978,0.00030136,120]
[422640381,1779199018000,241.19256313,0.00030136,120]
[422640380,1779199018000,500.0,0.00030136,120]
[422640379,1779199018000,306.16758551,0.00030136,120]
[422640382,1779199018000,367.89006009,0.00030136,120]
[422640385,1779199020000,252.2069509,0.00030136,120]
[422640384,1779199020000,341.55346062,0.00030136,120]
[422640383,1779199020000,264.80687094,0.00030136,120]
[422640386,1779199022000,162.13637178,0.00030136,120]
[422640387,1779199026000,220.56292919,0.00030136,120]
[422640388,1779199027000,554.73896149,0.00030136,120]
[422640389,1779199027000,1361.72,0.00030136,120]
[422640390,1779199030000,319.46559696,0.00030136,120]
[422640391,1779199031000,238.85872788,0.00030136,120]
[422640393,1779199032000,1263.34,0.00030136,120]
[422640392,1779199032000,300.40981161,0.00030136,120]
[422640395,1779199033000,250.50871971,0.00030136,120]
[422640394,1779199033000,599.17291503,0.00030136,120]
[422640397,1779199036000,192.80493956,0.00030136,120]
[422640396,1779199036000,257.7295118,0.00030136,120]
[422640398,1779199038000,293.26480782,0.00030136,120]
[422640399,1779199038000,500.0,0.00030136,120]
[422640400,1779199039000,312.97411647,0.00030136,120]
[422640401,1779199040000,275.61837012,0.00030136,120]
[422640402,1779199041000,500.0,0.00030136,120]
[422640404,1779199042000,500.0,0.00030136,120]
[422640403,1779199042000,458.39907182,0.00030136,120]
[422640406,1779199043000,259.84004671,0.00030136,120]
[422640405,1779199043000,361.9913253,0.00030136,120]
[422640407,1779199044000,329.41309582,0.00030136,120]
[422640408,1779199045000,500.0,0.00030136,120]
[422640409,1779199046000,242.70833115,0.00030136,120]
[422640410,1779199048000,500.0,0.00030136,120]
[422640412,1779199049000,215.17102997,0.00030136,120]
[422640411,1779199049000,357.64924134,0.00030136,120]
[422640414,1779199051000,235.44410056,0.00030136,120]
[422640413,1779199051000,500.0,0.00030136,120]
[422640415,1779199053000,282.5803638,0.00030136,120]
[422640417,1779199054000,301.75410945,0.00030136,120]
[422640416,1779199054000,235.40493648,0.00030136,120]
[422640418,1779199055000,500.0,0.00030136,120]
[422640420,1779199058000,2809.81,0.00030136,120]
[422640419,1779199058000,206.98818886,0.00030136,120]
[422640421,1779199059000,366.49713973,0.00030136,120]
[422640422,1779199060000,303.7503556,0.00030136,120]
[422640424,1779199062000,500.0,0.00030136,120]
[422640423,1779199062000,500.0,0.00030136,120]
[422640425,1779199063000,292.48393053,0.00030136,120]
[422640426,1779199066000,500.0,0.00030136,120]
[422640427,1779199067000,265.4218888,0.00030136,120]
[422640429,1779199067000,324.32616297,0.00030136,120]
[422640428,1779199067000,305.2281699,0.00030136,120]
[422640430,1779199067000,313.1728257,0.00030136,120]
[422640431,1779199068000,454.38898543,0.00030136,120]
[422640433,1779199069000,367.94865879,0.00030136,120]
[422640432,1779199069000,500.0,0.00030136,120]
[422640435,1779199071000,301.11877527,0.00030136,120]
[422640434,1779199071000,254.58237357,0.00030136,120]
[422640436,1779199072000,218.97872984,0.00030136,120]
[422640438,1779199074000,333.71160905,0.00030136,120]
[422640440,1779199075000,1051.33,0.00030136,120]
[422640439,1779199075000,169.94256546,0.00030136,120]
[422640441,1779199077000,495.52484996,0.00030136,120]
[422640442,1779199079000,326.78846122,0.00030136,120]
[422640443,1779199079000,541.57556063,0.00030136,120]
[422640444,1779199080000,303.1128004,0.00030136,120]
[422640446,1779199081000,271.20267837,0.00030136,120]
[422640445,1779199081000,244.87527307,0.00030136,120]
[422640447,1779199082000,628.78797479,0.00030136,120]
[422640448,1779199083000,500.0,0.00030136,120]
[422640449,1779199085000,500.0,0.00030136,120]
[422640451,1779199086000,361.93669538,0.00030136,120]
[422640450,1779199086000,315.21119487,0.00030136,120]
[422640452,1779199087000,321.24329824,0.00030136,120]
[422640453,1779199087000,605.70230037,0.00030136,120]
[422640454,1779199088000,544.62,0.00030136,120]
[422640456,1779199089000,500.0,0.00030136,120]
[422640455,1779199089000,500.0,0.00030136,120]
[422640457,1779199090000,500.0,0.00030136,120]
[422640459,1779199091000,269.54125107,0.00030136,120]
[422640458,1779199091000,268.79439146,0.00030136,120]
[422640460,1779199094000,500.0,0.00030136,120]
[422640461,1779199095000,166.6592556,0.00030136,120]
[422640462,1779199097000,390.18991575,0.00030136,120]
[422640464,1779199098000,261.09103501,0.00030136,120]
[422640465,1779199098000,385.9821178,0.00030136,120]
[422640463,1779199098000,500.0,0.00030136,120]
[422640467,1779199099000,500.0,0.00030136,120]
[422640466,1779199099000,151.40366896,0.00030136,120]
[422640468,1779199102000,258.47032364,0.00030136,120]
[422640470,1779199104000,1173.47,0.00030136,120]
[422640469,1779199104000,306.02230986,0.00030136,120]
[422640471,1779199106000,280.81930384,0.00030136,120]
[422640473,1779199106000,314.13362631,0.00030136,120]
[422640472,1779199106000,837.44,0.00030136,120]
[422640474,1779199108000,253.88989661,0.00030136,120]
[422640475,1779199110000,616.78492071,0.00030136,120]
[422640476,1779199111000,221.85571636,0.00030136,120]
[422640477,1779199113000,500.0,0.00030136,120]
[422640479,1779199115000,866.29,0.00030136,120]
[422640478,1779199115000,203.54349568,0.00030136,120]
[422640480,1779199117000,487.61791614,0.00030136,120]
[422640481,1779199118000,305.61268475,0.00030136,120]
[422640482,1779199120000,292.35331838,0.00030136,120]
[422640484,1779199120000,196.08763573,0.00030136,120]
[422640485,1779199120000,500.0,0.00030136,120]
[422640483,1779199120000,169.59995473,0.00030136,120]
[422640486,1779199122000,349.75990989,0.00030136,120]
[422640487,1779199122000,506.3119479,0.00030136,120]
[422640488,1779199123000,303.00411933,0.00030136,120]
[422640492,1779199124000,614.49765332,0.00030136,120]
[422640491,1779199124000,2100.61,0.00030136,120]
[422640490,1779199124000,500.0,0.00030136,120]
[422640489,1779199124000,294.94498133,0.00030136,120]
[422640494,1779199126000,325.56254027,0.00030136,120]
[422640493,1779199126000,244.17501779,0.00030136,120]
[422640495,1779199127000,519.77253822,0.00030136,120]
[422640496,1779199128000,464.09995253,0.00030136,120]
[422640498,1779199129000,500.0,0.00030136,120]
[422640497,1779199129000,500.0,0.00030136,120]
[422640499,1779199130000,256.1046915,0.00030136,120]
[422640500,1779199131000,307.9472229,0.00030136,120]
[422640503,1779199134000,262.27392109,0.00030136,120]
[422640502,1779199134000,186.77727333,0.00030136,120]
[422640501,1779199134000,380.44416466,0.00030136,120]
[422640504,1779199136000,500.0,0.00030136,120]
[422640505,1779199137000,284.73277497,0.00030136,120]
[422640506,1779199138000,281.91211821,0.00030136,120]
[422640507,1779199139000,213.64085149,0.00030136,120]
[422640509,1779199142000,603.75728165,0.00030136,120]
[422640508,1779199142000,198.84006383,0.00030136,120]
[422640510,1779199144000,4806.66,0.00030136,120]
[422640511,1779199145000,500.0,0.00030136,120]
[422640512,1779199146000,188.82811516,0.00030136,120]
[422640513,1779199147000,60446.74345803,0.00030137,120]
[422640514,1779199150000,500.0,0.00030136,120]
[422640515,1779199151000,500.0,0.00030136,120]
[422640517,1779199152000,308.75467091,0.00030136,120]
[422640516,1779199152000,153.17684586,0.00030136,120]
[422640519,1779199153000,194.31830316,0.00030136,120]
[422640518,1779199153000,151.49042238,0.00030136,120]
[422640521,1779199155000,239.89739325,0.00030136,120]
[422640520,1779199155000,500.0,0.00030136,120]
[422640523,1779199156000,171.65663172,0.00030136,120]
[422640522,1779199156000,193.35802285,0.00030136,120]
[422640525,1779199157000,194.2416327,0.00030136,120]
[422640524,1779199157000,500.0,0.00030136,120]
[422640526,1779199160000,272.57677402,0.00030136,120]
[422640527,1779199160000,303.78500809,0.00030136,120]
[422640529,1779199161000,795.36,0.00030136,120]
[422640528,1779199161000,193.09872957,0.00030136,120]
[422640530,1779199162000,408.3155902,0.00030136,120]
[422640531,1779199163000,1317.34,0.00030136,120]
[422640532,1779199165000,500.0,0.00030136,120]
[422640533,1779199167000,500.0,0.00030136,120]
[422640534,1779199169000,500.0,0.00030136,120]
[422640535,1779199170000,357.86728159,0.00030136,120]
[422640536,1779199171000,500.0,0.00030136,120]
[422640537,1779199172000,192.02719384,0.00030136,120]
[422640538,1779199173000,500.0,0.00030136,120]
[422640539,1779199174000,269.28135601,0.00030136,120]
[422640540,1779199175000,308.7239192,0.00030136,120]
[422640541,1779199179000,205.76269874,0.00030136,120]
[422640542,1779199181000,248.73204918,0.00030136,120]
[422640543,1779199181000,318.90485326,0.00030136,120]
[422640544,1779199183000,500.0,0.00030136,120]
[422640545,1779199185000,381.79859341,0.00030136,120]
[422640546,1779199188000,500.0,0.00030136,120]
[422640547,1779199189000,271.40804882,0.00030136,120]
[422640549,1779199190000,500.0,0.00030136,120]
[422640548,1779199190000,500.0,0.00030136,120]
[422640550,1779199192000,527.66,0.00030136,120]
[422640551,1779199193000,321.4350022,0.00030136,120]
[422640552,1779199195000,500.0,0.00030136,120]
[422640553,1779199196000,623.82627967,0.00030136,120]
[422640555,1779199198000,500.0,0.00030136,120]
[422640554,1779199198000,645.34086087,0.00030136,120]
[422640556,1779199199000,500.0,0.00030136,120]
[422640558,1779199203000,2843.27,0.00030136,120]
[422640557,1779199203000,4421.29,0.00030136,120]
[422640559,1779199205000,237.92896746,0.00030136,120]
[422640560,1779199209000,358.87322005,0.00030136,120]
[422640561,1779199211000,2802.55,0.00030136,120]
[422640562,1779199212000,328.21678657,0.00030136,120]
[422640563,1779199212000,500.0,0.00030136,120]
[422640565,1779199216000,329.57708579,0.00030136,120]
[422640564,1779199216000,311.70314519,0.00030136,120]
[422640566,1779199217000,500.0,0.00030136,120]
[422640568,1779199218000,251.61378935,0.00030136,120]
[422640567,1779199218000,667.5,0.00030136,120]
[422640569,1779199221000,273.01096969,0.00030136,120]
[422640570,1779199222000,190.26975689,0.00030136,120]
[422640571,1779199224000,175.34945566,0.00030136,120]
[422640573,1779199224000,2042.9,0.00030136,120]
[422640572,1779199224000,150.1267921,0.00030136,120]
[422640574,1779199225000,500.0,0.00030136,120]
[422640575,1779199225000,554.97042021,0.00030136,120]
[422640576,1779199226000,202.90912564,0.00030136,120]
[422640577,1779199227000,172.1276872,0.00030136,120]
[422640578,1779199228000,629.00622697,0.00030136,120]
[422640580,1779199229000,253.87081159,0.00030136,120]
[422640579,1779199229000,209.05932029,0.00030136,120]
[422640581,1779199230000,240.36840075,0.00030136,120]
[422640582,1779199231000,175.47555931,0.00030136,120]
[422640583,1779199232000,155.01076363,0.00030136,120]
[422640584,1779199234000,666.9,0.00030136,120]
[422640585,1779199235000,500.0,0.00030136,120]
[422640586,1779199236000,240.41170883,0.00030136,120]
[422640587,1779199236000,244.26998101,0.00030136,120]
[422640588,1779199240000,2492.76,0.00030136,120]
[422640589,1779199241000,351.64153133,0.00030136,120]
[422640590,1779199242000,500.0,0.00030136,120]
[422640591,1779199243000,222.11273256,0.00030136,120]
[422640593,1779199247000,3401.36,0.00030136,120]
[422640592,1779199247000,203.51501512,0.00030136,120]
[422640594,1779199248000,325.93863384,0.00030136,120]
[422640595,1779199249000,3814.19,0.00030136,120]
[422640596,1779199249000,152.23083644,0.00030136,120]
[422640597,1779199250000,240.6299077,0.00030136,120]
[422640598,1779199252000,152.0,0.00030136,120]
[422640599,1779199253000,195.98536683,0.00030136,120]
[422640600,1779199256000,500.0,0.00030136,120]
[422640601,1779199259000,158.2244225,0.00030136,120]
[422640602,1779199260000,1210.7,0.00030136,120]
[422640604,1779199261000,198.90213935,0.00030136,120]
[422640603,1779199261000,291.56249464,0.00030136,120]
[422640606,1779199264000,500.0,0.00030136,120]
[422640605,1779199264000,233.58645471,0.00030136,120]
[422640607,1779199266000,332.05144801,0.00030136,120]
[422640608,1779199266000,2439.99,0.00030136,120]
[422640609,1779199266000,523.80873526,0.00030136,120]
[422640610,1779199268000,509.89465039,0.00030136,120]
[422640612,1779199269000,500.0,0.00030136,120]
[422640611,1779199269000,156.62631732,0.00030136,120]
[422640614,1779199272000,2404.14,0.00030136,120]
[422640613,1779199272000,500.0,0.00030136,120]
[422640616,1779199274000,259.50500364,0.00030136,120]
[422640617,1779199278000,500.0,0.00030136,120]
[422640618,1779199279000,500.0,0.00030136,120]
[422640619,1779199279000,329.96125793,0.00030136,120]
[422640620,1779199283000,204.98660863,0.00030136,120]
[422640622,1779199285000,187.14901659,0.00030136,120]
[422640621,1779199285000,262.81199179,0.00030136,120]
[422640623,1779199285000,295.08724292,0.00030136,120]
[422640624,1779199286000,203.96979746,0.00030136,120]
[422640625,1779199288000,500.0,0.00030136,120]
[422640626,1779199288000,2671.13,0.00030136,120]
[422640627,1779199289000,221.06160355,0.00030136,120]
[422640628,1779199289000,261.50526885,0.00030136,120]
[422640630,1779199293000,8589.09,0.00030136,120]
[422640631,1779199294000,189.01388908,0.00030136,120]
[422640633,1779199297000,168.481191,0.00030136,120]
[422640632,1779199297000,270.73546756,0.00030136,120]
[422640634,1779199298000,500.0,0.00030136,120]
[422640635,1779199299000,209.86443406,0.00030136,120]
[422640636,1779199304000,174.01504908,0.00030136,120]
[422640637,1779199305000,325.55317688,0.00030136,120]
[422640639,1779199311000,311.83348297,0.00030136,120]
[422640640,1779199313000,489.27978447,0.00030136,120]
[422640641,1779199314000,518.94215909,0.00030136,120]
[422640643,1779199315000,177.77545322,0.00030136,120]
[422640642,1779199315000,500.0,0.00030136,120]
[422640644,1779199316000,159.44060271,0.00030136,120]
[422640645,1779199317000,636.6424289,0.00030136,120]
[422640646,1779199319000,241.62860461,0.00030136,120]
[422640647,1779199321000,221.94569791,0.00030136,120]
[422640648,1779199322000,500.0,0.00030136,120]
[422640650,1779199325000,322.59985568,0.00030136,120]
[422640651,1779199330000,176.93352071,0.00030136,120]
[422640652,1779199330000,500.0,0.00030136,120]
[422640653,1779199331000,1124.58,0.00030136,120]
[422640654,1779199334000,180.70265805,0.00030136,120]
[422640655,1779199337000,301.89728937,0.00030136,120]
[422640656,1779199340000,500.0,0.00030136,120]
[422640659,1779199342000,159.28119757,0.00030136,120]
[422640658,1779199342000,500.0,0.00030136,120]
[422640660,1779199343000,151.47315292,0.00030136,120]
[422640661,1779199344000,500.0,0.00030136,120]
[422640662,1779199345000,174.49605204,0.00030136,120]
[422640663,1779199346000,500.0,0.00030136,120]
[422640666,1779199349000,160.91226606,0.00030136,120]
[422640665,1779199349000,2692.74,0.00030136,120]
[422640664,1779199349000,199.99220274,0.00030136,120]
[422640667,1779199350000,166.8893975,0.00030136,120]
[422640668,1779199354000,268.92278762,0.00030136,120]
[422640669,1779199356000,254.41934962,0.00030136,120]
[422640672,1779199357000,174.98079983,0.00030136,120]
[422640671,1779199357000,266.5520123,0.00030136,120]
[422640673,1779199359000,229.18737117,0.00030136,120]
[422640674,1779199359000,1007.53,0.00030136,120]
[422640676,1779199360000,154.23976931,0.00030136,120]
[422640675,1779199360000,195.20482816,0.00030136,120]
[422640677,1779199363000,193.23879306,0.00030136,120]
[422640679,1779199363000,153.57651799,0.00030136,120]
[422640678,1779199363000,500.0,0.00030136,120]
[422640680,1779199364000,4606.38,0.00030136,120]
[422640681,1779199370000,183.67179653,0.00030136,120]
[422640682,1779199372000,198.17631327,0.00030136,120]
[422640685,1779199374000,229.04007391,0.00030136,120]
[422640684,1779199374000,500.0,0.00030136,120]
[422640683,1779199374000,356.00237662,0.00030136,120]
[422640687,1779199376000,500.0,0.00030136,120]
[422640689,1779199380000,314.61385707,0.00030136,120]
[422640688,1779199380000,541.24589757,0.00030136,120]
[422640690,1779199381000,500.0,0.00030136,120]
[422640691,1779199383000,332.50557874,0.00030136,120]
[422640692,1779199386000,288.45517371,0.00030136,120]
[422640694,1779199388000,802.54,0.00030136,120]
[422640693,1779199388000,500.0,0.00030136,120]
[422640695,1779199392000,354.05826639,0.00030136,120]
[422640696,1779199394000,328.35440364,0.00030136,120]
[422640697,1779199395000,227.79771987,0.00030136,120]
[422640698,1779199397000,520.20246831,0.00030136,120]
[422640699,1779199398000,204.45749002,0.00030136,120]
[422640700,1779199400000,246.59575043,0.00030136,120]
[422640701,1779199400000,190.83916651,0.00030136,120]
[422640702,1779199402000,500.0,0.00030136,120]
[422640703,1779199404000,500.0,0.00030136,120]
[422640705,1779199405000,289.2556348,0.00030136,120]
[422640704,1779199405000,2013.08,0.00030136,120]
[422640706,1779199408000,170.31699946,0.00030136,120]
[422640707,1779199409000,291.88832487,0.00030136,120]
[422640708,1779199410000,175.05513184,0.00030136,120]
[422640709,1779199410000,255.77731772,0.00030136,120]
[422640710,1779199413000,500.0,0.00030136,120]
[422640711,1779199414000,352.41401949,0.00030136,120]
[422640713,1779199415000,275.16188103,0.00030136,120]
[422640712,1779199415000,172.90603052,0.00030136,120]
[422640714,1779199416000,515.28029777,0.00030136,120]
[422640715,1779199417000,500.0,0.00030136,120]
[422640716,1779199418000,1018.27,0.00030136,120]
[422640717,1779199419000,500.0,0.00030136,120]
[422640718,1779199422000,500.0,0.00030136,120]
[422640719,1779199423000,290.19310254,0.00030136,120]
[422640720,1779199425000,500.0,0.00030136,120]
[422640721,1779199425000,162.53176888,0.00030136,120]
[422640722,1779199427000,333.6291295,0.00030136,120]
[422640723,1779199427000,335.46548311,0.00030136,120]
[422640724,1779199429000,268.69933259,0.00030136,120]
[422640726,1779199430000,4237.07,0.00030136,120]
[422640725,1779199430000,172.77350627,0.00030136,120]
[422640727,1779199431000,315.84187551,0.00030136,120]
[422640728,1779199439000,285.07493068,0.00030136,120]
[422640729,1779199440000,160.34679236,0.00030136,120]
[422640730,1779199441000,805.13,0.00030136,120]
[422640731,1779199444000,500.0,0.00030136,120]
[422640732,1779199444000,314.248568,0.00030136,120]
[422640733,1779199451000,280.94720303,0.00030136,120]
[422640734,1779199453000,245.56366531,0.00030136,120]
[422640735,1779199455000,251.33510871,0.00030136,120]
[422640736,1779199458000,500.0,0.00030136,120]
[422640737,1779199459000,523.39968898,0.00030136,120]
[422640738,1779199462000,644.73215955,0.00030136,120]
[422640739,1779199463000,343.42186722,0.00030136,120]
[422640741,1779199466000,3655.27,0.00030136,120]
[422640740,1779199466000,284.5365981,0.00030136,120]
[422640743,1779199469000,500.0,0.00030136,120]
[422640744,1779199469000,259.55205219,0.00030136,120]
[422640742,1779199469000,500.0,0.00030136,120]
[422640745,1779199472000,194.31764815,0.00030136,120]
[422640747,1779199474000,351.63097148,0.00030136,120]
[422640746,1779199474000,304.26114374,0.00030136,120]
[422640750,1779199477000,3259.64,0.00030136,120]
[422640749,1779199477000,1957.78,0.00030136,120]
[422640748,1779199477000,191.58868483,0.00030136,120]
[422640751,1779199481000,196.87428065,0.00030136,120]
[422640752,1779199485000,500.0,0.00030136,120]
[422640753,1779199486000,195.26202304,0.00030136,120]
[422640754,1779199488000,229.13853858,0.00030136,120]
[422640755,1779199488000,249.95800849,0.00030136,120]
[422640756,1779199491000,204.56590776,0.00030136,120]
[422640757,1779199492000,199.12901476,0.00030136,120]
[422640759,1779199494000,195.77056127,0.00030136,120]
[422640758,1779199494000,308.24456217,0.00030136,120]
[422640760,1779199495000,1160.25,0.00030136,120]
[422640762,1779199498000,159.29135646,0.00030136,120]
[422640761,1779199498000,200.61331358,0.00030136,120]
[422640763,1779199500000,500.0,0.00030136,120]
[422640765,1779199502000,184.69158792,0.00030136,120]
[422640764,1779199502000,2303.96,0.00030136,120]
[422640767,1779199504000,216.85042007,0.00030136,120]
[422640766,1779199504000,500.0,0.00030136,120]
[422640768,1779199505000,500.0,0.00030136,120]
[422640769,1779199508000,545.92,0.00030136,120]
[422640770,1779199509000,320.2194025,0.00030136,120]
[422640771,1779199512000,500.0,0.00030136,120]
[422640772,1779199513000,186.33099674,0.00030136,120]
[422640776,1779199518000,246.23323511,0.00030136,120]
[422640775,1779199518000,8231.22,0.00030136,120]
[422640777,1779199520000,202.55630154,0.00030136,120]
[422640779,1779199521000,316.12247338,0.00030136,120]
[422640778,1779199521000,2559.84,0.00030136,120]
[422640780,1779199522000,500.0,0.00030136,120]
[422640781,1779199524000,500.0,0.00030136,120]
[422640782,1779199526000,500.0,0.00030136,120]
[422640784,1779199527000,206.10921472,0.00030136,120]
[422640783,1779199527000,500.0,0.00030136,120]
[422640785,1779199529000,336.35304793,0.00030136,120]
[422640786,1779199530000,172.22693415,0.00030136,120]
[422640788,1779199533000,219.67080602,0.00030136,120]
[422640787,1779199533000,500.0,0.00030136,120]
[422640789,1779199534000,260.12732597,0.00030136,120]
[422640790,1779199535000,207.37522022,0.00030136,120]
[422640791,1779199536000,258.45896282,0.00030136,120]
[422640792,1779199537000,168.49334667,0.00030136,120]
[422640793,1779199538000,251.95709443,0.00030136,120]
[422640794,1779199542000,150.60874824,0.00030136,120]
[422640795,1779199544000,314.91516486,0.00030136,120]
[422640797,1779199548000,157.26780195,0.00030136,120]
[422640796,1779199548000,301.09575304,0.00030136,120]
[422640798,1779199549000,166.94657012,0.00030136,120]
[422640800,1779199557000,233.71285264,0.00030136,120]
[422640801,1779199558000,196.62561841,0.00030136,120]
[422640802,1779199559000,500.0,0.00030136,120]
[422640803,1779199561000,500.0,0.00030136,120]
[422640804,1779199562000,169.41409458,0.00030136,120]
[422640805,1779199563000,500.0,0.00030136,120]
[422640806,1779199565000,361.14518133,0.00030136,120]
[422640807,1779199565000,181.31918592,0.00030136,120]
[422640809,1779199569000,610.09937592,0.00030136,120]
[422640808,1779199569000,158.56726681,0.00030136,120]
[422640810,1779199571000,500.0,0.00030136,120]
[422640811,1779199574000,329.00910574,0.00030136,120]
[422640812,1779199576000,321.45742339,0.00030136,120]
[422640813,1779199579000,2580.54,0.00030136,120]
[422640814,1779199580000,181.95083972,0.00030136,120]
[422640815,1779199582000,638.83513823,0.00030136,120]
[422640816,1779199582000,204.41023276,0.00030136,120]
[422640817,1779199584000,160.0,6.756e-05,2]
[422640818,1779199585000,695.85,0.00030136,120]
[422640819,1779199588000,500.0,0.00030136,120]